fUSD/lending_fUSD_20241205
["ID","MTS","AMOUNT","RATE_DAILY","PERIOD"]
[344366337,1733381433127,-500.0,7.499e-05,2]
[344366339,1733381433138,-500.0,7.499e-05,2]
[344366341,1733381433148,-500.0,7.499e-05,2]
[344366343,1733381433158,-500.0,7.499e-05,2]
[344366345,1733381433167,-500.0,7.499e-05,2]
[344366347,1733381433176,-500.0,7.499e-05,2]
[344366349,1733381433185,-500.0,7.499e-05,2]
[344366351,1733381433195,-500.0,7.499e-05,2]
[344366353,1733381433204,-500.0,7.499e-05,2]
[344366355,1733381433213,-500.0,7.499e-05,2]
[344366357,1733381433223,-500.0,7.499e-05,2]
[344366359,1733381433232,-500.0,7.499e-05,2]
[344366361,1733381433241,-471.47738731,7.499e-05,2]
[344366363,1733381433250,-501.32403916,7.499e-05,2]
[344366364,1733381433259,-500.0,7.499e-05,2]
[344366366,1733381433269,-500.0,7.499e-05,2]
[344366368,1733381433278,-500.0,7.499e-05,2]
[344366370,1733381433288,-500.0,7.499e-05,2]
[344366372,1733381433297,-500.0,7.499e-05,2]
[344366374,1733381433306,-500.0,7.499e-05,2]
[344366376,1733381433317,-521.2,7.499e-05,2]
[344366378,1733381433326,-262.26144225,7.499e-05,2]
[344366379,1733381433335,-500.0,7.499e-05,2]
[344366380,1733381433345,-500.0,7.499e-05,2]
[344366381,1733381433354,-500.0,7.499e-05,2]
[344366382,1733381433363,-500.0,7.499e-05,2]
[344366383,1733381433372,-500.0,7.499e-05,2]
[344366384,1733381433382,-500.0,7.499e-05,2]
[344366385,1733381433391,-500.0,7.499e-05,2]
[344366386,1733381433400,-500.0,7.499e-05,2]
[344366388,1733381433410,-187.30886948,7.499e-05,2]
[344366390,1733381433419,-511.66789625,7.499e-05,2]
[344366392,1733381433429,-500.6619465,7.499e-05,2]
[344366394,1733381433438,-500.75971759,7.499e-05,2]
[344366396,1733381433448,-500.0,7.499e-05,2]
[344366398,1733381433457,-500.0,7.499e-05,2]
[344366400,1733381433466,-500.0,7.499e-05,2]
[344366402,1733381433475,-500.0,7.499e-05,2]
[344366404,1733381433485,-500.0,7.499e-05,2]
[344366406,1733381433494,-500.0,7.499e-05,2]
[344366408,1733381433503,-500.0,7.499e-05,2]
[344366410,1733381433512,-500.0,7.499e-05,2]
[344366412,1733381433522,-500.0,7.499e-05,2]
[344366414,1733381433531,-500.0,7.499e-05,2]
[344366416,1733381433541,-500.0,7.499e-05,2]
[344366418,1733381433550,-500.0,7.499e-05,2]
[344366420,1733381433559,-500.0,7.499e-05,2]
[344366421,1733381433573,-500.0,7.499e-05,2]
[344366423,1733381433583,-542.29,7.499e-05,2]
[344366426,1733381433592,-500.0,7.499e-05,2]
[344366428,1733381433602,-500.0,7.499e-05,2]
[344366430,1733381433613,-270.81219587,7.499e-05,2]
[344366431,1733381433623,-500.0,7.499e-05,2]
[344366433,1733381433632,-514.13378106,7.499e-05,2]
[344366435,1733381433643,-500.0,7.499e-05,2]
[344366437,1733381433653,-500.0,7.499e-05,2]
[344366439,1733381433662,-500.0,7.499e-05,2]
[344366441,1733381433671,-635.71,7.499e-05,2]
[344366443,1733381433680,-500.0,7.499e-05,2]
[344366445,1733381433689,-500.0,7.499e-05,2]
[344366447,1733381433699,-319.18272222,7.499e-05,2]
[344366449,1733381433708,-500.0,7.499e-05,2]
[344366451,1733381433718,-500.0,7.499e-05,2]
[344366453,1733381433727,-500.0,7.499e-05,2]
[344366455,1733381433737,-500.0,7.499e-05,2]
[344366457,1733381433746,-500.0,7.499e-05,2]
[344366459,1733381433756,-500.0,7.499e-05,2]
[344366461,1733381433765,-500.0,7.499e-05,2]
[344366463,1733381433775,-500.0,7.499e-05,2]
[344366465,1733381433784,-500.0,7.499e-05,2]
[344366467,1733381433794,-500.0,7.499e-05,2]
[344366469,1733381433803,-555.36006855,7.499e-05,2]
[344366471,1733381433813,-500.0,7.499e-05,2]
[344366473,1733381433823,-500.0,7.499e-05,2]
[344366475,1733381433833,-500.0,7.499e-05,2]
[344366477,1733381433842,-609.48,7.499e-05,2]
[344366479,1733381433852,-500.0,7.499e-05,2]
[344366481,1733381433862,-500.0,7.499e-05,2]
[344366483,1733381433871,-500.0,7.499e-05,2]
[344366485,1733381433880,-500.0,7.499e-05,2]
[344366487,1733381433890,-500.0,7.499e-05,2]
[344366488,1733381433899,-500.0,7.499e-05,2]
[344366490,1733381433909,-500.0,7.499e-05,2]
[344366492,1733381433918,-500.0,7.499e-05,2]
[344366494,1733381433928,-500.0,7.499e-05,2]
[344366496,1733381433937,-500.0,7.499e-05,2]
[344366498,1733381433947,-500.0,7.499e-05,2]
[344366500,1733381433956,-500.0,7.499e-05,2]
[344366502,1733381433966,-274.8,7.499e-05,2]
[344366504,1733381433975,-500.0,7.499e-05,2]
[344366506,1733381433985,-513.62,7.499e-05,2]
[344366508,1733381433994,-500.0,7.499e-05,2]
[344366510,1733381434005,-500.0,7.499e-05,2]
[344366512,1733381434015,-513.62,7.499e-05,2]
[344366514,1733381434026,-500.0,7.499e-05,2]
[344366516,1733381434036,-500.0,7.499e-05,2]
[344366518,1733381434045,-513.62,7.499e-05,2]
[344366520,1733381434055,-500.0,7.499e-05,2]
[344366522,1733381434065,-500.0,7.499e-05,2]
[344366524,1733381434075,-513.62,7.499e-05,2]
[344366526,1733381434084,-463.69,7.499e-05,2]
[344366528,1733381434093,-513.62,7.499e-05,2]
[344366530,1733381434102,-513.62,7.499e-05,2]
[344366532,1733381434112,-513.62,7.499e-05,2]
[344366534,1733381434121,-570.59580118,7.499e-05,2]
[344366536,1733381434130,-500.0,7.499e-05,2]
[344366538,1733381434141,-523.43,7.499e-05,2]
[344366540,1733381434151,-523.43,7.499e-05,2]
[344366542,1733381434161,-523.43,7.499e-05,2]
[344366544,1733381434170,-523.43,7.499e-05,2]
[344366546,1733381434179,-523.43,7.499e-05,2]
[344366548,1733381434189,-523.43,7.499e-05,2]
[344366550,1733381434198,-523.43,7.499e-05,2]
[344366552,1733381434207,-500.0,7.499e-05,2]
[344366554,1733381434217,-500.0,7.499e-05,2]
[344366556,1733381434226,-500.0,7.499e-05,2]
[344366558,1733381434236,-500.0,7.499e-05,2]
[344366560,1733381434245,-574.14,7.499e-05,2]
[344366562,1733381434254,-175.80096468,7.499e-05,2]
[344366564,1733381434264,-500.0,7.499e-05,2]
[344366566,1733381434274,-500.0,7.499e-05,2]
[344366568,1733381434284,-500.0,7.499e-05,2]
[344366569,1733381434293,-500.0,7.499e-05,2]
[344366572,1733381434303,-500.0,7.499e-05,2]
[344366573,1733381434313,-500.0,7.499e-05,2]
[344366575,1733381434325,-522.49088685,7.499e-05,2]
[344366577,1733381434334,-500.0,7.499e-05,2]
[344366579,1733381434344,-500.0,7.499e-05,2]
[344366581,1733381434354,-500.0,7.499e-05,2]
[344366583,1733381434364,-500.0,7.499e-05,2]
[344366586,1733381434374,-500.0,7.499e-05,2]
[344366587,1733381434384,-500.0,7.499e-05,2]
[344366589,1733381434393,-500.0,7.499e-05,2]
[344366592,1733381434403,-500.0,7.499e-05,2]
[344366593,1733381434413,-155.76,7.499e-05,2]
[344366595,1733381434423,-458.48452595,7.499e-05,2]
[344366598,1733381434432,-500.61606951,7.499e-05,2]
[344366599,1733381434442,-500.0,7.499e-05,2]
[344366601,1733381434452,-539.41,7.499e-05,2]
[344366604,1733381434462,-500.0,7.499e-05,2]
[344366605,1733381434472,-500.0,7.499e-05,2]
[344366607,1733381434481,-175.97,7.499e-05,2]
[344366609,1733381434491,-514.03229637,7.499e-05,2]
[344366611,1733381434500,-500.0,7.499e-05,2]
[344366613,1733381434510,-500.0,7.499e-05,2]
[344366615,1733381434520,-321.8,7.499e-05,2]
[344366617,1733381434531,-500.0,7.499e-05,2]
[344366619,1733381434541,-500.0,7.499e-05,2]
[344366621,1733381434550,-500.0,7.499e-05,2]
[344366623,1733381434566,-500.0,7.499e-05,2]
[344366625,1733381434578,-500.0,7.499e-05,2]
[344366627,1733381434588,-500.0,7.499e-05,2]
[344366629,1733381434598,-389.67999999,7.499e-05,2]
[344366631,1733381434608,-289.57,7.499e-05,2]
[344366633,1733381434618,-500.0,7.499e-05,2]
[344366635,1733381434627,-500.0,7.499e-05,2]
[344366637,1733381434638,-500.0,7.499e-05,2]
[344366639,1733381434649,-500.0,7.499e-05,2]
[344366641,1733381434659,-500.0,7.499e-05,2]
[344366643,1733381434669,-500.0,7.499e-05,2]
[344366645,1733381434679,-500.0,7.499e-05,2]
[344366647,1733381434689,-500.0,7.499e-05,2]
[344366649,1733381434698,-500.0,7.499e-05,2]
[344366651,1733381434708,-500.0,7.499e-05,2]
[344366653,1733381434718,-500.0,7.499e-05,2]
[344366655,1733381434727,-500.0,7.499e-05,2]
[344366657,1733381434738,-500.0,7.499e-05,2]
[344366659,1733381434747,-500.0,7.499e-05,2]
[344366661,1733381434757,-500.0,7.499e-05,2]
[344366663,1733381434768,-500.0,7.499e-05,2]
[344366665,1733381434778,-500.0,7.499e-05,2]
[344366667,1733381434787,-603.86487805,7.499e-05,2]
[344366669,1733381434797,-456.50072743,7.499e-05,2]
[344366671,1733381434807,-500.0,7.499e-05,2]
[344366672,1733381434818,-500.0,7.499e-05,2]
[344366673,1733381434828,-500.58438913,7.499e-05,2]
[344366674,1733381434838,-500.0,7.499e-05,2]
[344366675,1733381434849,-500.0,7.499e-05,2]
[344366676,1733381434859,-500.0,7.499e-05,2]
[344366677,1733381434868,-163.53112827,7.499e-05,2]
[344366678,1733381434878,-500.0,7.499e-05,2]
[344366680,1733381434887,-500.0,7.499e-05,2]
[344366682,1733381434897,-500.0,7.499e-05,2]
[344366684,1733381434906,-500.0,7.499e-05,2]
[344366686,1733381434916,-500.0,7.499e-05,2]
[344366688,1733381434925,-500.0,7.499e-05,2]
[344366690,1733381434935,-500.0,7.499e-05,2]
[344366692,1733381434944,-500.0,7.499e-05,2]
[344366694,1733381434954,-500.0,7.499e-05,2]
[344366696,1733381434964,-500.0,7.499e-05,2]
[344366698,1733381434974,-500.0,7.499e-05,2]
[344366700,1733381434983,-500.0,7.499e-05,2]
[344366702,1733381434992,-158.52682778,7.499e-05,2]
[344366704,1733381435002,-500.0,7.499e-05,2]
[344366706,1733381435012,-500.0,7.499e-05,2]
[344366708,1733381435022,-500.0,7.499e-05,2]
[344366710,1733381435032,-500.0,7.499e-05,2]
[344366712,1733381435042,-496.61,7.499e-05,2]
[344366714,1733381435052,-719.64,7.499e-05,2]
[344366716,1733381435062,-719.64,7.499e-05,2]
[344366718,1733381435074,-719.64,7.499e-05,2]
[344366720,1733381435084,-719.64,7.499e-05,2]
[344366722,1733381435093,-719.64,7.499e-05,2]
[344366724,1733381435103,-719.64,7.499e-05,2]
[344366726,1733381435112,-719.64,7.499e-05,2]
[344366728,1733381435122,-500.0,7.499e-05,2]
[344366730,1733381435132,-500.0,7.499e-05,2]
[344366732,1733381435142,-500.0,7.499e-05,2]
[344366734,1733381435151,-160.62744143,7.499e-05,2]
[344366736,1733381435160,-500.0,7.499e-05,2]
[344366738,1733381435170,-460.45,7.499e-05,2]
[344366740,1733381435179,-500.0,7.499e-05,2]
[344366742,1733381435188,-500.0,7.499e-05,2]
[344366744,1733381435198,-500.0,7.499e-05,2]
[344366746,1733381435208,-500.0,7.499e-05,2]
[344366748,1733381435218,-500.0,7.499e-05,2]
[344366750,1733381435227,-500.0,7.499e-05,2]
[344366752,1733381435237,-500.0,7.499e-05,2]
[344366754,1733381435247,-500.0,7.499e-05,2]
[344366756,1733381435256,-500.0,7.499e-05,2]
[344366758,1733381435267,-500.0,7.499e-05,2]
[344366760,1733381435276,-500.0,7.499e-05,2]
[344366762,1733381435285,-522.97389866,7.499e-05,2]
[344366764,1733381435295,-542.1,7.499e-05,2]
[344366766,1733381435304,-1445.17,7.499e-05,2]
[344366768,1733381435314,-1445.17,7.499e-05,2]
[344366770,1733381435326,-1445.17,7.499e-05,2]
[344366772,1733381435335,-1445.17,7.499e-05,2]
[344366774,1733381435345,-1445.17,7.499e-05,2]
[344366776,1733381435355,-1445.17,7.499e-05,2]
[344366778,1733381435364,-1445.17,7.499e-05,2]
[344366780,1733381435373,-500.0,7.499e-05,2]
[344366782,1733381435383,-170.70857893,7.499e-05,2]
[344366784,1733381435394,-500.0,7.499e-05,2]
[344366805,1733381435603,-500.0,7.499e-05,2]
[344366807,1733381435614,-279.17579192,7.499e-05,2]
[344366809,1733381435623,-500.0,7.499e-05,2]
[344366811,1733381435634,-500.0,7.499e-05,2]
[344366813,1733381435644,-500.0,7.499e-05,2]
[344366815,1733381435654,-500.0,7.499e-05,2]
[344366817,1733381435664,-500.0,7.499e-05,2]
[344366819,1733381435674,-500.0,7.499e-05,2]
[344366821,1733381435684,-500.0,7.499e-05,2]
[344366823,1733381435694,-301.75263143,7.499e-05,2]
[344366825,1733381435703,-500.0,7.499e-05,2]
[344366827,1733381435713,-500.0,7.499e-05,2]
[344366829,1733381435723,-500.0,7.499e-05,2]
[344366831,1733381435733,-500.0,7.499e-05,2]
[344366833,1733381435743,-463.06830529,7.499e-05,2]
[344366835,1733381435753,-500.0,7.499e-05,2]
[344366837,1733381435763,-500.0,7.499e-05,2]
[344366840,1733381435773,-1664052.77392715,7.5e-05,2]
[344366841,1733381435783,-497.6,7.5e-05,2]
[344366844,1733381435793,-241.26827038,7.5e-05,2]
[344366846,1733381435802,-1771.9096958,7.545e-05,2]
[344366847,1733381435812,-435.43,7.55e-05,2]
[344366850,1733381435824,-1558.75,7.55e-05,2]
[344366852,1733381435833,-870.61,7.55e-05,2]
[344366854,1733381435844,-435.18,7.55e-05,2]
[344366856,1733381435853,-364.08,7.55e-05,2]
[344366858,1733381435863,-435.43,7.58e-05,2]
[344366860,1733381435872,-500.0,7.599e-05,2]
[344366862,1733381435882,-523.43,7.599e-05,2]
[344366863,1733381435891,-500.0,7.599e-05,2]
[344366866,1733381435900,-500.0,7.599e-05,2]
[344366868,1733381435910,-500.0,7.599e-05,2]
[344366870,1733381435920,-500.0,7.599e-05,2]
[344366872,1733381435929,-719.64,7.599e-05,2]
[344366873,1733381435938,-500.0,7.599e-05,2]
[344366876,1733381435949,-1445.17,7.599e-05,2]
[344366878,1733381435958,-1262.0,7.6e-05,2]
[344366880,1733381435967,-566.0,7.6e-05,2]
[344366881,1733381435977,-150.0,7.6e-05,2]
[344366884,1733381435986,-2003.0,7.6e-05,2]
[344366885,1733381435995,-631.0,7.6e-05,2]
[344366887,1733381436005,-563.0,7.6e-05,2]
[344366889,1733381436016,-1893.0,7.6e-05,2]
[344366891,1733381436028,-816.0,7.6e-05,2]
[344366893,1733381436053,-3759.0,7.6e-05,2]
[344366895,1733381436064,-1252.0,7.6e-05,2]
[344366897,1733381436077,-974.0,7.6e-05,2]
[344366899,1733381436087,-535.0,7.6e-05,2]
[344366901,1733381436096,-3529.0,7.6e-05,2]
[344366903,1733381436106,-5963.0,7.6e-05,2]
[344366905,1733381436116,-1242.517,7.6e-05,2]
[344366907,1733381436126,-13713.0,7.6e-05,2]
[344366909,1733381436136,-300.0,7.6e-05,2]
[344366911,1733381436145,-435.43,7.6e-05,2]
[344366913,1733381436155,-435.43,7.6e-05,2]
[344366915,1733381436164,-7930.18075396,7.6e-05,2]
[344366917,1733381436173,-150.0,7.64e-05,2]
[344366919,1733381436183,-150.0,7.64e-05,2]
[344366920,1733381436192,-447.00956771,7.64e-05,2]
[344366921,1733381436202,-150.0,7.64e-05,2]
[344366922,1733381436211,-21831.47796844,7.64e-05,2]
[344366923,1733381436220,-8693.21815058,7.64e-05,2]
[344366924,1733381436230,-501.0,7.671e-05,2]
[344366925,1733381436239,-600.23564375,7.673e-05,2]
[344366927,1733381436248,-1635.03835916,7.677e-05,2]
[344366929,1733381436258,-218.25127511,7.677e-05,2]
[344366931,1733381436267,-291.00170015,7.678e-05,2]
[344366933,1733381436277,-1635.03835916,7.678e-05,2]
[344366935,1733381436286,-200.0,7.678e-05,2]
[344366937,1733381436296,-2180.05114555,7.678e-05,2]
[344366939,1733381436305,-809.71350522,7.678e-05,2]
[344366941,1733381436315,-919.70907703,7.678e-05,2]
[344366943,1733381436325,-809.71350522,7.678e-05,2]
[344366945,1733381436335,-689.78180777,7.679e-05,2]
[344366947,1733381436345,-455.46384668,7.679e-05,2]
[344366949,1733381436354,-919.70907703,7.68e-05,2]
[344366951,1733381436363,-607.28512891,7.68e-05,2]
[344366953,1733381436373,-1635.03835916,7.68e-05,2]
[344366955,1733381436382,-607.28512891,7.68e-05,2]
[344366957,1733381436391,-200.0,7.68e-05,2]
[344366959,1733381436401,-388.00226687,7.681e-05,2]
[344366961,1733381436411,-1635.03835916,7.681e-05,2]
[344366963,1733381436420,-809.71350522,7.681e-05,2]
[344366965,1733381436430,-200.0,7.681e-05,2]
[344366968,1733381436439,-1226.27876937,7.681e-05,2]
[344366970,1733381436448,-689.78180777,7.681e-05,2]
[344366972,1733381436458,-517.33635583,7.681e-05,2]
[344366973,1733381436467,-689.78180777,7.681e-05,2]
[344366975,1733381436477,-200.0,7.681e-05,2]
[344366977,1733381436487,-200.0,7.682e-05,2]
[344366979,1733381436496,-388.00226687,7.682e-05,2]
[344366981,1733381436505,-200.0,7.682e-05,2]
[344366983,1733381436515,-218.25127511,7.683e-05,2]
[344366985,1733381436524,-200.0,7.683e-05,2]
[344366988,1733381436534,-1439.49067594,7.683e-05,2]
[344366990,1733381436543,-1439.49067594,7.683e-05,2]
[344366992,1733381436553,-517.33635583,7.683e-05,2]
[344366994,1733381436568,-200.0,7.683e-05,2]
[344366996,1733381436577,-2180.05114555,7.683e-05,2]
[344366998,1733381436586,-607.28512891,7.683e-05,2]
[344367000,1733381436595,-200.0,7.684e-05,2]
[344367002,1733381436605,-1079.61800696,7.684e-05,2]
[344367004,1733381436615,-517.33635583,7.684e-05,2]
[344367006,1733381436625,-919.70907703,7.685e-05,2]
[344367008,1733381436635,-919.70907703,7.685e-05,2]
[344367010,1733381436644,-388.00226687,7.685e-05,2]
[344367012,1733381436654,-291.00170015,7.685e-05,2]
[344367014,1733381436663,-1439.49067594,7.686e-05,2]
[344367016,1733381436672,-689.78180777,7.686e-05,2]
[344367018,1733381436682,-1226.27876937,7.686e-05,2]
[344367020,1733381436692,-1635.03835916,7.686e-05,2]
[344367022,1733381436701,-2180.05114555,7.687e-05,2]
[344367024,1733381436711,-2180.05114555,7.687e-05,2]
[344367026,1733381436721,-809.71350522,7.687e-05,2]
[344367028,1733381436731,-455.46384668,7.687e-05,2]
[344367030,1733381436740,-2180.05114555,7.687e-05,2]
[344367032,1733381436750,-200.0,7.687e-05,2]
[344367034,1733381436759,-517.33635583,7.688e-05,2]
[344367036,1733381436769,-200.0,7.688e-05,2]
[344367038,1733381436778,-1635.03835916,7.689e-05,2]
[344367040,1733381436788,-218.25127511,7.689e-05,2]
[344367042,1733381436798,-1079.61800696,7.689e-05,2]
[344367044,1733381436807,-1439.49067594,7.689e-05,2]
[344367046,1733381436819,-919.70907703,7.689e-05,2]
[344367048,1733381436828,-607.28512891,7.69e-05,2]
[344367050,1733381436837,-200.0,7.69e-05,2]
[344367052,1733381436847,-1079.61800696,7.69e-05,2]
[344367054,1733381436856,-200.0,7.691e-05,2]
[344367056,1733381436866,-388.00226687,7.691e-05,2]
[344367058,1733381436875,-919.70907703,7.691e-05,2]
[344367060,1733381436885,-1226.27876937,7.691e-05,2]
[344367062,1733381436894,-517.33635583,7.691e-05,2]
[344367064,1733381436903,-2180.05114555,7.691e-05,2]
[344367066,1733381436914,-200.0,7.691e-05,2]
[344367068,1733381436923,-291.00170015,7.692e-05,2]
[344367070,1733381436932,-291.00170015,7.692e-05,2]
[344367072,1733381436942,-218.25127511,7.692e-05,2]
[344367074,1733381436952,-607.28512891,7.692e-05,2]
[344367076,1733381436961,-517.33635583,7.692e-05,2]
[344367078,1733381436970,-200.0,7.692e-05,2]
[344367080,1733381436980,-291.00170015,7.692e-05,2]
[344367082,1733381436990,-455.46384668,7.693e-05,2]
[344367084,1733381437000,-455.46384668,7.694e-05,2]
[344367086,1733381437009,-1079.61800696,7.694e-05,2]
[344367088,1733381437018,-455.46384668,7.694e-05,2]
[344367090,1733381437028,-388.00226687,7.695e-05,2]
[344367092,1733381437037,-291.00170015,7.695e-05,2]
[344367094,1733381437048,-455.46384668,7.696e-05,2]
[344367096,1733381437058,-1354.26980768,7.696e-05,2]
[344367100,1733381437080,-85.22086826,7.696e-05,2]
[344367102,1733381437090,-1079.61800696,7.696e-05,2]
[344367104,1733381437100,-607.28512891,7.696e-05,2]
[344367106,1733381437111,-218.25127511,7.696e-05,2]
[344367108,1733381437121,-49.22472076,7.697e-05,2]
[344367110,1733381437133,-150.77527924,7.697e-05,2]
[344367112,1733381437142,-809.71350522,7.697e-05,2]
[344367114,1733381437151,-388.00226687,7.697e-05,2]
[344367116,1733381437162,-164.18894867,7.698e-05,2]
[344367118,1733381437178,-525.5928591,7.698e-05,2]
[344367121,1733381437188,-689.78180777,7.698e-05,2]
[344367123,1733381437198,-218.25127511,7.698e-05,2]
[344367124,1733381437207,-500.0,7.698e-05,2]
[344367126,1733381437217,-500.0,7.698e-05,2]
[344367129,1733381437228,-513.62,7.698e-05,2]
[344367131,1733381437237,-1226.27876937,7.698e-05,2]
[344367132,1733381437246,-1439.49067594,7.698e-05,2]
[344367135,1733381437256,-200.0,7.699e-05,2]
[344367136,1733381437265,-150.0,7.699e-05,2]
[344367139,1733381437275,-200.0,7.699e-05,2]
[344367140,1733381437284,-500.0,7.699e-05,2]
[344367142,1733381437294,-500.77307332,7.699e-05,2]
[344367144,1733381437303,-157.99781263,7.699e-05,2]
[344367146,1733381437312,-500.0,7.699e-05,2]
[344367148,1733381437323,-500.0,7.699e-05,2]
[344367150,1733381437332,-365.65,7.699e-05,2]
[344367152,1733381437342,-513.62,7.699e-05,2]
[344367154,1733381437352,-523.43,7.699e-05,2]
[344367156,1733381437362,-500.0,7.699e-05,2]
[344367159,1733381437372,-500.0,7.699e-05,2]
[344367160,1733381437381,-500.0,7.699e-05,2]
[344367161,1733381437390,-500.0,7.699e-05,2]
[344367162,1733381437400,-719.64,7.699e-05,2]
[344367163,1733381437409,-500.0,7.699e-05,2]
[344367164,1733381437418,-1445.17,7.699e-05,2]
[344367165,1733381437428,-1226.27876937,7.699e-05,2]
[344367166,1733381437437,-1226.27876937,7.7e-05,2]
[344367168,1733381437446,-809.71350522,7.7e-05,2]
[344367170,1733381437456,-1079.61800696,7.7e-05,2]
[344367172,1733381437466,-21688.42121834,7.7e-05,2]
[344367175,1733381437479,-5050.18499593,7.7e-05,2]
[344367179,1733381437505,-8015.20776215,7.7e-05,2]
[344367181,1733381437516,-2601.2,7.7e-05,2]
[344367183,1733381437527,-2816.84400929,7.7e-05,2]
[344367187,1733381437543,-6558.75639891,7.7e-05,2]
[344367242,1733381438049,-500.0,7.498e-05,2]
[344367244,1733381438059,-500.0,7.499e-05,2]
[344367246,1733381438069,-500.0,7.499e-05,2]
[344367248,1733381438079,-500.0,7.499e-05,2]
[344367250,1733381438088,-218.01,7.499e-05,2]
[344367252,1733381438099,-500.0,7.499e-05,2]
[344367254,1733381438108,-500.0,7.499e-05,2]
[344367256,1733381438119,-231.12893752,7.499e-05,2]
[344367258,1733381438130,-500.0,7.499e-05,2]
[344367260,1733381438140,-500.0,7.499e-05,2]
[344367263,1733381438149,-150.0,7.6e-05,2]
[344367265,1733381438159,-150.0,7.6e-05,2]
[344367267,1733381438168,-150.0,7.6e-05,2]
[344367269,1733381438177,-18013.47139548,7.7e-05,2]
[344367271,1733381438188,-10256.4,7.7e-05,2]
[344367275,1733381438211,-984.68371593,7.7e-05,2]
[344367277,1733381438226,-12691.16316268,7.7e-05,2]
[344367280,1733381438237,-31858.43313206,7.7e-05,2]
[344367417,1733381439642,-500.0,7.499e-05,2]
[344367420,1733381439652,-500.0,7.499e-05,2]
[344367421,1733381439662,-500.0,7.499e-05,2]
[344367423,1733381439671,-500.0,7.499e-05,2]
[344367425,1733381439681,-500.0,7.499e-05,2]
[344367427,1733381439690,-353.94742133,7.499e-05,2]
[344367429,1733381439700,-201.09891751,7.499e-05,2]
[344367431,1733381439709,-198.54789116,7.7e-05,2]
[344367434,1733381439721,-818.37261224,7.7e-05,2]
[344367437,1733381439744,-18317.5,7.7e-05,2]
[344367448,1733381439845,-258.17999699,7.7e-05,2]
[344367450,1733381439857,-3789.9190374,7.7e-05,2]
[344367453,1733381439869,-962.87499999,7.7e-05,2]
[344367715,1733381442858,-2500.0,7.4e-05,2]
[344367717,1733381442867,-500.0,7.499e-05,2]
[344367719,1733381442877,-500.0,7.499e-05,2]
[344367721,1733381442886,-359.99999999,7.499e-05,2]
[344367726,1733381442948,-140.00000001,7.499e-05,2]
[344367727,1733381442958,-183.36,7.499e-05,2]
[344367728,1733381442967,-500.0,7.499e-05,2]
[344367729,1733381442976,-500.0,7.499e-05,2]
[344367730,1733381442985,-1939.84737914,7.7e-05,2]
[344367732,1733381442996,-3110.61620688,7.7e-05,2]
[344367734,1733381443006,-11965.46077675,7.7e-05,2]
[344367738,1733381443037,-500.0,7.499e-05,2]
[344367740,1733381443046,-20821.69000001,7.7e-05,2]
[344367749,1733381443124,-768.47165842,7.7e-05,2]
[344368000,1733381445584,-500.0,7.498e-05,2]
[344368002,1733381445593,-500.0,7.499e-05,2]
[344368004,1733381445603,-500.0,7.599e-05,2]
[344368006,1733381445612,-500.0,7.699e-05,2]
[344368008,1733381445621,-4299.16425246,7.7e-05,2]
[344368011,1733381445644,-51098.95194786,7.7e-05,2]
[344368018,1733381445702,-24799.7822027,7.7e-05,2]
[344368020,1733381445711,-2498.75,7.7e-05,2]
[344368022,1733381445721,-2893.44,7.7e-05,2]
[344368024,1733381445731,-200.0,7.7e-05,2]
[344368026,1733381445740,-1244.53,7.7e-05,2]
[344368028,1733381445749,-1077.0,7.7e-05,2]
[344368030,1733381445758,-198.08,7.767e-05,2]
[344368032,1733381445767,-6900.4201314,7.816e-05,2]
[344368034,1733381445776,-329.22,7.864e-05,2]
[344368036,1733381445785,-300.0,7.866e-05,2]
[344368038,1733381445795,-373.35395848,7.888e-05,2]
[344368040,1733381445804,-6577.919957,7.945e-05,2]
[344368042,1733381445813,-3605.13599032,7.945e-05,2]
[344368047,1733381445853,-1322.36035569,7.945e-05,2]
[344368052,1733381445885,-514.56105898,7.499e-05,2]
[344368054,1733381445894,-350.35450286,7.945e-05,2]
[344368056,1733381445905,-602.13296,7.945e-05,2]
[344369874,1733381893163,185.71,6.925e-05,2]
[344369876,1733381929981,622.29,6.878e-05,2]
[344369879,1733381995559,250.0,6.874e-05,2]
[344369892,1733382631868,-300.0,7.369e-05,2]